Workbook

Sheet hesaplama
A1: Ay | B1: Tefe/Üfe | AF1: Ekranda Gözükmesine Gerek Olmayan Hesaplamalar
A2: 1980-01-01 | B2: 9.2 | M2: 2014-04-30 | AF2: son vade tarihi
A3: 1980-02-01 | B3: 29.3 | AF3: kanunun yayım tariih
A4: 1980-03-01 | B4: 4.4 | AF4: ağustos 2014'e esas yi-üfe
A5: 1980-04-01 | B5: 3.5
A6: 1980-05-01 | B6: 2.9
A7: 1980-06-01 | B7: 2.8 | D7: 6552 Sayılı Kanun Kapsamında Yi-ÜFE ile Güncellenmiş Peşin ve Taksitli Ödeme Planlama Aracı
A8: 1980-07-01 | B8: 0.2
A9: 1980-08-01 | B9: 1.5 | D9: Sıra | E9: Borcun vadesi* | F9: Borç Tutarı | G9: Yi-Üfe(%) | H9: Yi-Üfe İle Güncellenen Borç Tutarı | I9: Toplam Peşin Ödenecek Tutar | J9: Taksit Sayısı | K9: Taksitli Ödeme Toplam Tutar | L9: Aylık Taksit Tutarı
A10: 1980-09-01 | B10: 3.5 | D10: 1 | E10: 2013-08-31 | F10: 379.96 | G10: =IF(E10>$M$2,0,SUMIF(A:B,">=" & DATE(YEAR(E10),MONTH(E10),DAY(1)),B:B)+P10) -> 9.294 | H10: =IF(G10<=0,0,F10*G10/100) -> 35.3134824 | I10: =H10+F10 -> 415.2734824 | J10: 6 | K10: =IF(G10=0,0,IF(J10=6,I10*$AW$17,IF(J10=9,I10*$AW$18,IF(J10=12,I10*$AW$19,IF(J10=18,I10*$AW$20,I10*0))))) -> 436.0371565 | L10: =IF(J10=0,0,K10/J10) -> 72.67285942 | N10: =DATE(2014,8,IF((DAY(E10)+1)>31,31,DAY(E10)+1)) -> 2014-08-31 | O10: 2014-09-10 | P10: =0.42/30*(O10-N10+1) -> 0.154
A11: 1980-10-01 | B11: 7.1 | D11: 2 | E11: 2013-07-31 | F11: 376.75 | G11: =IF(E11>$M$2,0,SUMIF(A:B,">=" & DATE(YEAR(E11),MONTH(E11),DAY(1)),B:B)+P11) -> 10.284 | H11: =IF(G11<=0,0,F11*G11/100) -> 38.74497 | I11: =H11+F11 -> 415.49497 | J11: 6 | K11: =IF(G11=0,0,IF(J11=6,I11*$AW$17,IF(J11=9,I11*$AW$18,IF(J11=12,I11*$AW$19,IF(J11=18,I11*$AW$20,I11*0))))) -> 436.2697185 | L11: 72.71161975 | N11: =DATE(2014,8,IF((DAY(E11)+1)>31,31,DAY(E11)+1)) -> 2014-08-31 | O11: 2014-09-10 | P11: =0.42/30*(O11-N11+1) -> 0.154
A12: 1980-11-01 | B12: 3.8 | D12: 3 | E12: 2012-02-26 | F12: 340.6 | G12: 14.87 | H12: =IF(G12<=0,0,F12*G12/100) -> 50.64722 | I12: =H12+F12 -> 391.24722 | J12: 6 | K12: 410.809581 | L12: 68.4682635 | N12: 2014-08-27 | O12: 2014-09-10 | P12: 0.21
A13: 1980-12-01 | B13: 3.1 | D13: 4 | E13: 2012-01-31 | F13: 322.51 | G13: 15.194 | H13: 49.0021694 | I13: 371.5121694 | J13: 6 | K13: 390.0877779 | L13: 65.01462964 | N13: 2014-08-31 | O13: 2014-09-10 | P13: 0.154
A14: 1981-01-01 | B14: 4.6 | D14: 5 | E14: 2011-12-31 | F14: 320.31 | G14: 16.194 | H14: 51.8710014 | I14: 372.1810014 | J14: 6 | K14: 390.7900515 | L14: 65.13167525 | N14: 2014-08-31 | O14: 2014-09-10 | P14: 0.154
A15: 1981-02-01 | B15: 2.2 | D15: 6 | E15: 2011-11-30 | F15: 320.31 | G15: 16.844 | H15: 53.9530164 | I15: 374.2630164 | J15: 6 | K15: 392.9761672 | L15: 65.49602787 | N15: 2014-08-31 | O15: 2014-09-10 | P15: 0.154 | AV15: taksit sayısı | AW15: katsayı
A16: 1981-03-01 | B16: -0.8 | D16: 7 | E16: 2011-10-31 | F16: 320.31 | G16: 18.444 | H16: 59.0779764 | I16: 379.3879764 | J16: 6 | K16: 398.3573752 | L16: 66.39289587 | N16: 2014-08-31 | O16: 2014-09-10 | P16: 0.154 | AV16: 0 | AW16: 0
A17: 1981-04-01 | B17: -0.8 | D17: 8 | E17: 2011-09-30 | F17: 320.31 | G17: 19.994 | H17: 64.0427814 | I17: 384.3527814 | J17: 6 | K17: 403.5704205 | L17: 67.26173674 | N17: 2014-08-31 | O17: 2014-09-10 | P17: 0.154 | AV17: 6 | AW17: 1.05
A18: 1981-05-01 | B18: 2.2 | D18: 9 | E18: 2011-08-31 | F18: 152.02 | G18: 21.754 | H18: 33.0704308 | I18: 185.0904308 | J18: 6 | K18: 194.3449523 | L18: 32.39082539 | N18: 2014-08-31 | O18: 2014-09-10 | P18: 0.154 | AV18: 9 | AW18: 1.07
A19: 1981-06-01 | B19: 6.4 | D19: 10 | E19: 2011-06-30 | F19: 38.7 | G19: 21.734 | H19: 8.411058 | I19: 47.111058 | J19: 6 | K19: 49.4666109 | L19: 8.24443515 | N19: 2014-08-31 | O19: 2014-09-10 | P19: 0.154 | AV19: 12 | AW19: 1.1
A20: 1981-07-01 | B20: 0.2 | D20: 11 | G20: 1177.064 | H20: 0 | I20: 0 | K20: 0 | L20: 0 | N20: 2014-08-01 | O20: 2014-09-10 | P20: 0.574 | AV20: 18 | AW20: 1.15
A21: 1981-08-01 | B21: 1.1 | D21: 12 | G21: 1177.064 | H21: 0 | I21: 0 | K21: 0 | L21: 0 | N21: 2014-08-01 | O21: 2014-09-10 | P21: 0.574
A22: 1981-09-01 | B22: 2.9 | D22: 13 | G22: 1177.064 | H22: 0 | I22: 0 | K22: 0 | L22: 0 | N22: 2014-08-01 | O22: 2014-09-10 | P22: 0.574
A23: 1981-10-01 | B23: 1.6 | D23: 14 | G23: 1177.064 | H23: 0 | I23: 0 | K23: 0 | L23: 0 | N23: 2014-08-01 | O23: 2014-09-10 | P23: 0.574
A24: 1981-11-01 | B24: 2 | D24: 15 | G24: 1177.064 | H24: 0 | I24: 0 | K24: 0 | L24: 0 | N24: 2014-08-01 | O24: 2014-09-10 | P24: 0.574
A25: 1981-12-01 | B25: 1.7 | D25: 16 | G25: 1177.064 | H25: 0 | I25: 0 | K25: 0 | L25: 0 | N25: 2014-08-01 | O25: 2014-09-10 | P25: 0.574
A26: 1982-01-01 | B26: 3.6 | D26: 17 | G26: 1177.064 | H26: 0 | I26: 0 | K26: 0 | L26: 0 | N26: 2014-08-01 | O26: 2014-09-10 | P26: 0.574
A27: 1982-02-01 | B27: 3.7 | D27: 18 | G27: 1177.064 | H27: 0 | I27: 0 | K27: 0 | L27: 0 | N27: 2014-08-01 | O27: 2014-09-10 | P27: 0.574
A28: 1982-03-01 | B28: 3.3 | D28: 19 | G28: 1177.064 | H28: 0 | I28: 0 | K28: 0 | L28: 0 | N28: 2014-08-01 | O28: 2014-09-10 | P28: 0.574
A29: 1982-04-01 | B29: 1.9 | D29: 20 | G29: 1177.064 | H29: 0 | I29: 0 | K29: 0 | L29: 0 | N29: 2014-08-01 | O29: 2014-09-10 | P29: 0.574
A30: 1982-05-01 | B30: 1.3 | D30: 21 | G30: 1177.064 | H30: 0 | I30: 0 | K30: 0 | L30: 0 | N30: 2014-08-01 | O30: 2014-09-10 | P30: 0.574
A31: 1982-06-01 | B31: 1.4 | D31: 22 | G31: 1177.064 | H31: 0 | I31: 0 | K31: 0 | L31: 0 | N31: 2014-08-01 | O31: 2014-09-10 | P31: 0.574
A32: 1982-07-01 | B32: 2 | D32: 23 | G32: 1177.064 | H32: 0 | I32: 0 | K32: 0 | L32: 0 | N32: 2014-08-01 | O32: 2014-09-10 | P32: 0.574
A33: 1982-08-01 | B33: 1.9 | D33: 24 | G33: 1177.064 | H33: 0 | I33: 0 | K33: 0 | L33: 0 | N33: 2014-08-01 | O33: 2014-09-10 | P33: 0.574
A34: 1982-09-01 | B34: 1.1 | D34: 25 | G34: 1177.064 | H34: 0 | I34: 0 | K34: 0 | L34: 0 | N34: 2014-08-01 | O34: 2014-09-10 | P34: 0.574
A35: 1982-10-01 | B35: 0.8 | D35: 26 | G35: 1177.064 | H35: 0 | I35: 0 | K35: 0 | L35: 0 | N35: 2014-08-01 | O35: 2014-09-10 | P35: 0.574
A36: 1982-11-01 | B36: 1 | D36: 27 | G36: 1177.064 | H36: 0 | I36: 0 | K36: 0 | L36: 0 | N36: 2014-08-01 | O36: 2014-09-10 | P36: 0.574
A37: 1982-12-01 | B37: 0.6 | D37: 28 | G37: 1177.064 | H37: 0 | I37: 0 | K37: 0 | L37: 0 | N37: 2014-08-01 | O37: 2014-09-10 | P37: 0.574
A38: 1983-01-01 | B38: 9.5 | D38: 29 | G38: 1177.064 | H38: 0 | I38: 0 | K38: 0 | L38: 0 | N38: 2014-08-01 | O38: 2014-09-10 | P38: 0.574
A39: 1983-02-01 | B39: 2.4 | D39: 30 | G39: 1177.064 | H39: 0 | I39: 0 | K39: 0 | L39: 0 | N39: 2014-08-01 | O39: 2014-09-10 | P39: 0.574
A40: 1983-03-01 | B40: 1.6 | E40: TOPLAM | F40: =SUM(F10:F39) -> 2891.78 | H40: =SUM(H10:H39) -> 444.1341062 | I40: =SUM(I10:I39) -> 3335.914106 | K40: =SUM(K10:K39) -> 3502.709812 | L40: =SUM(L10:L39) -> 583.7849686
A41: 1983-04-01 | B41: 1.4
A42: 1983-05-01 | B42: 1.7 | D42: * | E42: Borcun ödenmesi gereken normal vade tarihi yazılmalıdır. Örneğin: Ocak/2014 KDV Beyannamesi için vade tarihi 26.02.2014 yazılmalıdır.
A43: 1983-06-01 | B43: 1.3 | D43: www.korunanmuhasebe.com | G43: info@korunanmuhasebe.com | I43: Tel : +90 212 518 09 50 - 518 09 49 - 516 17 48 - 516 23 69
A44: 1983-07-01 | B44: 1.2
A45: 1983-08-01 | B45: 2.1
A46: 1983-09-01 | B46: 2.1
A47: 1983-10-01 | B47: 2.8
A48: 1983-11-01 | B48: 4.1
A49: 1983-12-01 | B49: 4.4
A50: 1984-01-01 | B50: 3.9
A51: 1984-02-01 | B51: 3.4
A52: 1984-03-01 | B52: 3.3
A53: 1984-04-01 | B53: 8.3
A54: 1984-05-01 | B54: 6.9
A55: 1984-06-01 | B55: 4.7
A56: 1984-07-01 | B56: -0.7
A57: 1984-08-01 | B57: 3.2
A58: 1984-09-01 | B58: 2.3
A59: 1984-10-01 | B59: 3.3
A60: 1984-11-01 | B60: 3.7
A61: 1984-12-01 | B61: 1.7
A62: 1985-01-01 | B62: 4.8
A63: 1985-02-01 | B63: 4.7
A64: 1985-03-01 | B64: 5.3
A65: 1985-04-01 | B65: 2.3
A66: 1985-05-01 | B66: 2.2
A67: 1985-06-01 | B67: -1.3
A68: 1985-07-01 | B68: 0.5
A69: 1985-08-01 | B69: 1.8
A70: 1985-09-01 | B70: 2.7
A71: 1985-10-01 | B71: 5
A72: 1985-11-01 | B72: 3.1
A73: 1985-12-01 | B73: 1.9
A74: 1986-01-01 | B74: 4.5
A75: 1986-02-01 | B75: 2
A76: 1986-03-01 | B76: 1.3
A77: 1986-04-01 | B77: 2
A78: 1986-05-01 | B78: 1.6
A79: 1986-06-01 | B79: 1
A80: 1986-07-01 | B80: 1.2
A81: 1986-08-01 | B81: 0.2
A82: 1986-09-01 | B82: 2.2
A83: 1986-10-01 | B83: 3.9
A84: 1986-11-01 | B84: 1.5
A85: 1986-12-01 | B85: 0.9
A86: 1987-01-01 | B86: 3.6
A87: 1987-02-01 | B87: 2.2
A88: 1987-03-01 | B88: 3.5
A89: 1987-04-01 | B89: 2.6
A90: 1987-05-01 | B90: 4.8
A91: 1987-06-01 | B91: 0.5
A92: 1987-07-01 | B92: 1.7
A93: 1987-08-01 | B93: 2.8
A94: 1987-09-01 | B94: 2.1
A95: 1987-10-01 | B95: 3.5
A96: 1987-11-01 | B96: 2.8
A97: 1987-12-01 | B97: 10.8
A98: 1988-01-01 | B98: 6.9
A99: 1988-02-01 | B99: 6.2
A100: 1988-03-01 | B100: 7
A101: 1988-04-01 | B101: 4.8
A102: 1988-05-01 | B102: 2.1
A103: 1988-06-01 | B103: 2.6
A104: 1988-07-01 | B104: 2.2
A105: 1988-08-01 | B105: 3.1
A106: 1988-09-01 | B106: 3.7
A107: 1988-10-01 | B107: 6.1
A108: 1988-11-01 | B108: 5.3
A109: 1988-12-01 | B109: 4.3
A110: 1989-01-01 | B110: 7.7
A111: 1989-02-01 | B111: 5.1
A112: 1989-03-01 | B112: 2.3
A113: 1989-04-01 | B113: 4.5
A114: 1989-05-01 | B114: 3.8
A115: 1989-06-01 | B115: 6.3
A116: 1989-07-01 | B116: 5
A117: 1989-08-01 | B117: 3.1
A118: 1989-09-01 | B118: 4.2
A119: 1989-10-01 | B119: 4.3
A120: 1989-11-01 | B120: 3.5
A121: 1989-12-01 | B121: 3.3
A122: 1990-01-01 | B122: 4.4
A123: 1990-02-01 | B123: 5.5
A124: 1990-03-01 | B124: 3.6
A125: 1990-04-01 | B125: 3.1
A126: 1990-05-01 | B126: 2.3
A127: 1990-06-01 | B127: 1.4
A128: 1990-07-01 | B128: 1.3
A129: 1990-08-01 | B129: 2.5
A130: 1990-09-01 | B130: 5.3
A131: 1990-10-01 | B131: 4.9
A132: 1990-11-01 | B132: 3.8
A133: 1990-12-01 | B133: 2.6
A134: 1991-01-01 | B134: 4.6
A135: 1991-02-01 | B135: 5.3
A136: 1991-03-01 | B136: 4.9
A137: 1991-04-01 | B137: 5.4
A138: 1991-05-01 | B138: 2.9
A139: 1991-06-01 | B139: 1.4
A140: 1991-07-01 | B140: 2.2
A141: 1991-08-01 | B141: 4.7
A142: 1991-09-01 | B142: 4.4
A143: 1991-10-01 | B143: 3.5
A144: 1991-11-01 | B144: 3.8
A145: 1991-12-01 | B145: 4.4
A146: 1992-01-01 | B146: 11
A147: 1992-02-01 | B147: 5.2
A148: 1992-03-01 | B148: 4.3
A149: 1992-04-01 | B149: 2.2
A150: 1992-05-01 | B150: 0.7
A151: 1992-06-01 | B151: 0.2
A152: 1992-07-01 | B152: 1.8
A153: 1992-08-01 | B153: 4.8
A154: 1992-09-01 | B154: 6.3
A155: 1992-10-01 | B155: 5.5
A156: 1992-11-01 | B156: 3.5
A157: 1992-12-01 | B157: 3.6
A158: 1993-01-01 | B158: 5
A159: 1993-02-01 | B159: 5.2
A160: 1993-03-01 | B160: 4.8
A161: 1993-04-01 | B161: 2.6
A162: 1993-05-01 | B162: 2.9
A163: 1993-06-01 | B163: 2.3
A164: 1993-07-01 | B164: 4.7
A165: 1993-08-01 | B165: 3.8
A166: 1993-09-01 | B166: 4
A167: 1993-10-01 | B167: 3.6
A168: 1993-11-01 | B168: 6.4
A169: 1993-12-01 | B169: 2.9
A170: 1994-01-01 | B170: 5.3
A171: 1994-02-01 | B171: 10.1
A172: 1994-03-01 | B172: 8.5
A173: 1994-04-01 | B173: 32.8
A174: 1994-05-01 | B174: 9
A175: 1994-06-01 | B175: 1.9
A176: 1994-07-01 | B176: 0.9
A177: 1994-08-01 | B177: 2.7
A178: 1994-09-01 | B178: 5.4
A179: 1994-10-01 | B179: 6.9
A180: 1994-11-01 | B180: 6.4
A181: 1994-12-01 | B181: 8.3
A182: 1995-01-01 | B182: 8.4
A183: 1995-02-01 | B183: 7
A184: 1995-03-01 | B184: 6.1
A185: 1995-04-01 | B185: 3.9
A186: 1995-05-01 | B186: 1.7
A187: 1995-06-01 | B187: 1.3
A188: 1995-07-01 | B188: 2.4
A189: 1995-08-01 | B189: 2.9
A190: 1995-09-01 | B190: 4.8
A191: 1995-10-01 | B191: 4.4
A192: 1995-11-01 | B192: 4.3
A193: 1995-12-01 | B193: 4.1
A194: 1996-01-01 | B194: 9.8
A195: 1996-02-01 | B195: 5.8
A196: 1996-03-01 | B196: 7
A197: 1996-04-01 | B197: 8.1
A198: 1996-05-01 | B198: 4.1
A199: 1996-06-01 | B199: 2.7
A200: 1996-07-01 | B200: 2.4
... 216 more rows
